bitfinex-derivatives/quotes_BTCF0:USTF0_20260127
["timestamp","ask_amount","ask_price","bid_price","bid_amount"]
[1769528044551,0.22411116,87756.0,87740.0,0.10268]
[1769528044767,0.10889487,87755.0,87740.0,0.10268]
[1769528045057,0.22416702,87754.0,87732.0,0.10943776]
[1769528045258,0.11527215,87753.0,87733.0,0.10268]
[1769528045559,0.11527215,87753.0,87733.0,0.21211776]
[1769528045863,0.10889487,87752.0,87734.0,0.10268]
[1769528046066,0.10889487,87750.0,87734.0,0.10268]
[1769528046268,0.10889487,87748.0,87734.0,0.10268]
[1769528046455,0.10889487,87748.0,87724.0,0.10943776]
[1769528046769,0.10889487,87746.0,87723.0,0.10268]
[1769528047066,0.10889487,87744.0,87723.0,0.10268]
[1769528047260,0.10889487,87742.0,87723.0,0.10268]
[1769528047462,0.10889487,87740.0,87713.0,0.00798062]
[1769528047657,0.10889487,87738.0,87717.0,0.10268]
[1769528047853,0.10889487,87736.0,87717.0,0.10268]
[1769528048054,0.10889487,87734.0,87717.0,0.10268]
[1769528048260,0.10889487,87732.0,87717.0,0.10268]
[1769528048769,0.10889487,87730.0,87717.0,0.10268]
[1769528050155,0.12293304,87729.0,87717.0,0.10268]
[1769528050457,0.10268,87735.0,87717.0,0.10268]
[1769528050764,0.12293216,87734.0,87717.0,0.10268]
[1769528050967,0.12293216,87733.0,87717.0,0.10268]
[1769528051260,0.12293216,87732.0,87717.0,0.10268]
[1769528051468,0.12293216,87731.0,87717.0,0.10268]
[1769528051766,0.10268,87735.0,87717.0,0.10268]
[1769528051767,0.12293216,87730.0,87717.0,0.10268]
[1769528051957,0.12293216,87729.0,87717.0,0.10268]
[1769528052153,0.12293216,87728.0,87717.0,0.10268]
[1769528052467,0.12293216,87727.0,87717.0,0.10268]
[1769528052659,0.10268,87735.0,87717.0,0.10268]
[1769528052957,0.12297373,87734.0,87717.0,0.10268]
[1769528053157,0.12297373,87733.0,87717.0,0.10268]
[1769528053362,0.12297373,87732.0,87717.0,0.10268]
[1769528053564,0.12297373,87731.0,87717.0,0.10268]
[1769528053766,0.12297373,87730.0,87717.0,0.10268]
[1769528054066,0.12297373,87729.0,87717.0,0.10268]
[1769528054364,0.12297183,87728.0,87717.0,0.10268]
[1769528054566,0.12030687,87732.0,87717.0,0.10268]
[1769528054868,0.12297233,87731.0,87717.0,0.10268]
[1769528055062,0.12297233,87730.0,87717.0,0.10268]
[1769528055260,0.12297233,87729.0,87717.0,0.10268]
[1769528055558,0.12297233,87728.0,87717.0,0.10268]
[1769528055761,0.10889487,87732.0,87717.0,0.10268]
[1769528055963,0.23186531,87731.0,87717.0,0.10268]
[1769528056162,0.12297044,87730.0,87717.0,0.10268]
[1769528056369,0.12297044,87729.0,87717.0,0.10268]
[1769528056666,0.12297044,87728.0,87717.0,0.10268]
[1769528056864,0.10889487,87731.0,87717.0,0.10268]
[1769528057069,0.12296952,87730.0,87717.0,0.10268]
[1769528057370,0.12296952,87729.0,87717.0,0.10268]
[1769528057564,0.12296952,87728.0,87717.0,0.10268]
[1769528057772,0.23186439,87727.0,87717.0,0.10268]
[1769528057955,0.10268,87735.0,87705.0,0.10272]
[1769528057956,0.10889487,87724.0,87705.0,0.10272]
[1769528058263,0.10889487,87722.0,87705.0,0.10272]
[1769528058460,0.10889487,87720.0,87705.0,0.10272]
[1769528058655,0.23191872,87719.0,87705.0,0.10272]
[1769528058862,0.12302385,87718.0,87705.0,0.10272]
[1769528059058,0.10889487,87716.0,87695.0,0.10943776]
[1769528059368,0.10889487,87714.0,87701.0,0.10272]
[1769528059664,0.12297873,87713.0,87701.0,0.10272]
[1769528059866,0.10889487,87714.0,87701.0,0.10272]
[1769528060074,0.10272,87724.0,87690.0,0.0001342]
[1769528060075,0.10889487,87708.0,87690.0,0.0001342]
[1769528060372,0.1229905,87713.0,87678.0,0.10272]
[1769528060373,0.10889487,87698.0,87678.0,0.10272]
[1769528060665,0.10889487,87694.0,87678.0,0.10272]
[1769528060967,0.10889487,87692.0,87664.0,0.21215776]
[1769528061169,0.10889487,87690.0,87664.0,0.21215776]
[1769528061378,0.12031287,87688.0,87664.0,0.21215776]
[1769528061572,0.1229443,87687.0,87667.0,0.10943776]
[1769528061759,0.00010879,87689.0,87674.0,0.10943776]
[1769528061760,0.1229443,87686.0,87674.0,0.10943776]
[1769528062069,0.00010879,87689.0,87674.0,0.10943776]
[1769528063070,0.12272402,87688.0,87674.0,0.10943776]
[1769528063271,0.00010879,87689.0,87674.0,0.10943776]
[1769528066068,0.011418,87687.0,87667.0,0.11221946]
[1769528066271,0.11119865,87686.0,87666.0,0.01140687]
[1769528066572,0.12261765,87681.0,87666.0,0.01140687]
[1769528066874,0.11119865,87681.0,87666.0,0.11412687]
[1769528068663,0.11119865,87688.0,87668.0,0.11221946]
[1769528069166,0.11119865,87688.0,87671.0,0.01142]
[1769528069563,0.11119865,87688.0,87669.0,0.11221946]
[1769528070165,0.11119865,87686.0,87666.0,0.11412687]
[1769528070377,0.11119865,87684.0,87666.0,0.22634633]
[1769528070567,0.00010879,87689.0,87667.0,0.11221946]
[1769528070870,0.011418,87688.0,87667.0,0.11221946]
[1769528071174,0.011418,87686.0,87667.0,0.11221946]
[1769528071376,0.12272544,87689.0,87667.0,0.11221946]
[1769528072572,0.011418,87686.0,87667.0,0.11221946]
[1769528072777,0.11130744,87689.0,87667.0,0.11221946]
[1769528072975,0.011418,87688.0,87667.0,0.11221946]
[1769528073169,0.11130744,87689.0,87667.0,0.11221946]
[1769528073170,0.011418,87686.0,87667.0,0.11221946]
[1769528073371,0.00010879,87689.0,87667.0,0.11221946]
[1769528073568,0.11119865,87676.0,87656.0,0.011422]
[1769528073873,0.11119865,87676.0,87656.0,0.11405564]
[1769528074074,0.011419,87677.0,87657.0,0.11221946]
[1769528074276,0.011419,87680.0,87657.0,0.11221946]
[1769528074676,0.12261765,87680.0,87659.0,0.11221946]
[1769528075480,0.011419,87678.0,87659.0,0.11221946]
[1769528075681,0.011419,87676.0,87659.0,0.11221946]
[1769528075885,0.11119865,87673.0,87654.0,0.30068]
[1769528076067,0.11119865,87673.0,87642.0,0.10276]
[1769528076270,0.10276,87678.0,87642.0,0.10276]
[1769528076271,0.11119865,87666.0,87642.0,0.114184]
[1769528076476,0.11119865,87664.0,87642.0,0.10276]
[1769528077274,0.10276,87673.0,87651.0,0.11221946]
[1769528077483,0.10276,87675.0,87655.0,0.11221946]
[1769528078276,0.10276,87675.0,87657.0,0.11221946]
[1769528079075,0.21395865,87675.0,87657.0,0.11221946]
[1769528079385,0.11119865,87674.0,87654.0,0.11221946]
[1769528079583,0.10276,87675.0,87654.0,0.11221946]
[1769528079777,0.10276,87675.0,87656.0,0.11221946]
[1769528079978,0.11119865,87680.0,87662.0,0.11221946]
[1769528080178,0.10276,87680.0,87662.0,0.11221946]
[1769528080380,0.21395865,87680.0,87662.0,0.11221946]
[1769528081182,0.10276,87680.0,87664.0,0.11221946]
[1769528081389,0.10276,87680.0,87668.0,0.12363946]
[1769528082084,0.10276,87680.0,87668.0,0.11221946]
[1769528082587,0.10276,87680.0,87664.0,0.10276]
[1769528083689,0.11119865,87679.0,87664.0,0.10276]
[1769528084088,0.10276,87680.0,87664.0,0.10276]
[1769528084089,0.11119865,87677.0,87664.0,0.10276]
[1769528084978,0.10276,87680.0,87665.0,0.11221946]
[1769528085179,0.12177395,87679.0,87667.0,0.11221946]
[1769528085388,0.10276,87680.0,87667.0,0.11221946]
[1769528085586,0.10276,87680.0,87667.0,0.12364046]
[1769528085985,0.10276,87680.0,87669.0,0.01142]
[1769528086188,0.10276,87689.0,87675.0,0.11221946]
[1769528086388,0.10276,87695.0,87678.0,0.11221946]
[1769528086685,0.10276,87695.0,87681.0,0.12363846]
[1769528087082,0.10276,87695.0,87681.0,0.11221946]
[1769528087392,0.11119865,87704.0,87686.0,0.011418]
[1769528087584,0.10276,87711.0,87693.0,0.011417]
[1769528087785,0.10276,87711.0,87694.0,0.11221946]
[1769528087990,0.30076,87724.0,87701.0,0.11221946]
[1769528087991,0.11119865,87723.0,87701.0,0.11221946]
[1769528091381,0.11119865,87729.0,87703.0,0.11221946]
[1769528091587,0.10276,87735.0,87714.0,0.11221946]
[1769528091891,0.11119865,87734.0,87714.0,0.11221946]
[1769528092485,0.10276,87735.0,87714.0,0.12363346]
[1769528092883,0.10276,87735.0,87714.0,0.11221946]
[1769528093786,0.11119865,87734.0,87714.0,0.11221946]
[1769528094189,0.10276,87735.0,87714.0,0.11221946]
[1769528094590,0.21770831,87735.0,87714.0,0.11221946]
[1769528095883,0.11494831,87734.0,87714.0,0.11221946]
[1769528097481,0.10276,87735.0,87715.0,0.11140134]
[1769528097690,0.10276,87735.0,87718.0,0.11140134]
[1769528097900,0.10276,87735.0,87720.0,0.11140134]
[1769528098188,0.10276,87735.0,87721.0,0.12281534]
[1769528098387,0.10276,87735.0,87721.0,0.08509309]
[1769528098784,0.11494831,87734.0,87721.0,0.10272]
[1769528099494,0.11494831,87734.0,87711.0,0.011415]
[1769528099687,0.11494831,87734.0,87712.0,0.10272]
[1769528099889,0.11494831,87734.0,87713.0,0.011415]
[1769528100296,0.11494831,87734.0,87712.0,0.22553634]
[1769528100595,0.11494831,87734.0,87717.0,0.011414]
[1769528100797,0.11494831,87734.0,87714.0,0.11140134]
[1769528101190,0.11494831,87734.0,87709.0,0.11140134]
[1769528101496,0.11494831,87732.0,87710.0,0.10272]
[1769528101796,0.11494831,87730.0,87706.0,0.10272]
[1769528103094,0.11494831,87728.0,87706.0,0.10272]
[1769528103895,0.11494831,87746.0,87707.0,0.11140134]
[1769528104086,0.11494831,87744.0,87718.0,0.11140134]
[1769528104290,0.23248264,87743.0,87728.0,0.011413]
[1769528104486,0.10272,87745.0,87730.0,0.12281334]
[1769528104686,0.11753407,87744.0,87725.0,0.011413]
[1769528104891,0.10272,87745.0,87729.0,0.011412]
[1769528105090,0.10272,87745.0,87729.0,0.12281334]
[1769528105296,0.10272,87745.0,87729.0,0.11140134]
[1769528105695,0.10272,87745.0,87723.0,0.12281434]
[1769528105994,0.10272,87745.0,87723.0,0.11140134]
[1769528106198,0.11494831,87744.0,87723.0,0.10272]
[1769528106498,0.11494831,87744.0,87718.0,0.10272]
[1769528106896,0.11494831,87744.0,87710.0,0.11140134]
[1769528106897,0.11494831,87742.0,87705.0,0.312056]
[1769528107102,0.11494831,87740.0,87706.0,0.10272]
[1769528107286,0.11494831,87738.0,87711.0,0.011415]
[1769528107601,0.11494831,87736.0,87715.0,0.011414]
[1769528107799,0.11494831,87736.0,87715.0,0.11140134]
[1769528107999,0.11494831,87736.0,87706.0,0.10272]
[1769528108296,0.11552427,87735.0,87706.0,0.10272]
[1769528108601,0.11494831,87733.0,87706.0,0.10272]
[1769528108795,0.11494831,87731.0,87706.0,0.10272]
[1769528109002,0.11494831,87729.0,87706.0,0.10272]
[1769528109597,0.11554667,87728.0,87706.0,0.10272]
[1769528109902,0.11494831,87729.0,87706.0,0.10272]
[1769528110095,0.11554789,87728.0,87706.0,0.10272]
[1769528110408,0.11494831,87726.0,87696.0,0.10286147]
[1769528110594,0.11494831,87724.0,87696.0,0.10286147]
[1769528110793,0.10272,87732.0,87696.0,0.10286147]
[1769528110794,0.11494831,87722.0,87696.0,0.10286147]
[1769528111000,0.10272,87732.0,87696.0,0.10286147]
[1769528111001,0.11494831,87720.0,87696.0,0.10286147]
[1769528112298,0.11494831,87718.0,87696.0,0.10286147]
[1769528113506,0.11494831,87718.0,87698.0,0.011416]
[1769528113701,0.11494831,87718.0,87696.0,0.21426281]
[1769528113702,0.11494831,87718.0,87704.0,0.011416]
[1769528114204,0.11494831,87718.0,87701.0,0.011416]
[1769528114408,0.11494831,87718.0,87698.0,0.011416]
[1769528114598,0.11494831,87718.0,87697.0,0.11140134]
[1769528114900,0.11494831,87718.0,87702.0,0.011416]
[1769528115103,0.11597544,87717.0,87702.0,0.011416]
[1769528115300,0.11494831,87744.0,87703.0,0.11140134]
[1769528115506,0.11494831,87742.0,87714.0,0.12281534]
[1769528115707,0.11494831,87740.0,87714.0,0.12281534]
[1769528115905,0.1159776,87739.0,87716.0,0.11140134]
[1769528116110,0.30064,87738.0,87719.0,0.11140134]
[1769528116310,0.1159776,87737.0,87719.0,0.11140134]
[1769528116510,0.1159776,87737.0,87713.0,0.011415]
[1769528116511,0.23092591,87737.0,87713.0,0.12281634]
[1769528116710,0.11494831,87735.0,87703.0,0.011416]
[1769528116908,0.11494831,87733.0,87698.0,0.011416]
[1769528117103,0.11494831,87731.0,87698.0,0.12281734]
[1769528117304,0.11494831,87729.0,87698.0,0.12281734]
[1769528117503,0.11494831,87727.0,87698.0,0.12281734]
[1769528117807,0.11494831,87725.0,87698.0,0.12281734]
[1769528118009,0.1159776,87724.0,87698.0,0.12281734]
[1769528118208,0.11494831,87723.0,87700.0,0.011416]
[1769528118404,0.1159776,87722.0,87698.0,0.11140134]
[1769528118611,0.11494831,87721.0,87698.0,0.11140134]
[1769528118806,0.1159776,87720.0,87699.0,0.011416]
[1769528119504,0.1159776,87720.0,87698.0,0.11140134]
[1769528119911,0.11494831,87719.0,87698.0,0.11140134]
[1769528120102,0.1159776,87718.0,87698.0,0.11140134]
[1769528120510,0.1159776,87718.0,87698.0,0.12281834]
[1769528121004,0.1159776,87718.0,87700.0,0.011416]
[1769528121204,0.1159776,87718.0,87700.0,0.11140134]
[1769528122104,0.1159776,87717.0,87700.0,0.11140134]
[1769528122305,0.1159776,87716.0,87700.0,0.12281734]
[1769528122506,0.1159776,87715.0,87700.0,0.12281734]
[1769528122707,0.1159776,87714.0,87700.0,0.12281734]
[1769528123011,0.1159776,87713.0,87700.0,0.12281734]
[1769528123211,0.1159776,87712.0,87700.0,0.11140134]
[1769528123416,0.11339768,87722.0,87700.0,0.11140134]
[1769528123615,0.11607017,87721.0,87700.0,0.11140134]
[1769528123809,0.22946785,87720.0,87700.0,0.11140134]
[1769528124010,0.11607017,87719.0,87700.0,0.11140134]
[1769528124215,0.11607017,87718.0,87700.0,0.11140134]
[1769528124515,0.11339768,87720.0,87700.0,0.11140134]
[1769528124516,0.11607017,87717.0,87700.0,0.11140134]
[1769528124813,0.11607017,87716.0,87700.0,0.11140134]
[1769528125010,0.11607017,87715.0,87700.0,0.11140134]
[1769528125315,0.11607017,87714.0,87702.0,0.011416]
[1769528125497,0.11339768,87720.0,87702.0,0.011416]
[1769528125702,0.11603035,87719.0,87702.0,0.011416]
[1769528125898,0.11603035,87718.0,87702.0,0.011416]
[1769528126114,0.11603035,87717.0,87702.0,0.011416]
[1769528126299,0.11603035,87716.0,87702.0,0.011416]
[1769528126499,0.1160271,87715.0,87702.0,0.011416]
[1769528126708,0.1160271,87714.0,87702.0,0.011416]
[1769528127013,0.11339768,87720.0,87702.0,0.011416]
[1769528127314,0.11602041,87719.0,87702.0,0.12810915]
[1769528127512,0.11602041,87718.0,87702.0,0.12810915]
[1769528127714,0.11602041,87717.0,87702.0,0.12810915]
[1769528127914,0.11602041,87716.0,87702.0,0.12810915]
[1769528128098,0.11602041,87715.0,87702.0,0.11669315]
[1769528128303,0.11602041,87714.0,87702.0,0.11669315]
[1769528128615,0.10851865,87724.0,87702.0,0.11669315]
[1769528128815,0.22440343,87723.0,87702.0,0.11669315]
[1769528129010,0.11588478,87722.0,87702.0,0.11669315]
[1769528129322,0.10851865,87721.0,87702.0,0.11669315]
[1769528129611,0.10851865,87719.0,87696.0,0.00014147]
[1769528129915,0.10851865,87717.0,87696.0,0.00014147]
[1769528130105,0.10851865,87715.0,87696.0,0.00014147]
[1769528130305,0.10851865,87713.0,87696.0,0.00014147]
[1769528130504,0.22440343,87712.0,87696.0,0.00014147]
[1769528130705,0.11588478,87711.0,87696.0,0.00014147]
[1769528131611,0.10272,87716.0,87696.0,0.11683462]
[1769528131914,0.11578431,87715.0,87700.0,0.011416]
[1769528132114,0.11578431,87714.0,87698.0,0.011417]
[1769528132418,0.11578431,87713.0,87697.0,0.011417]
[1769528132605,0.11578431,87712.0,87697.0,0.011417]
[1769528132809,0.11578431,87711.0,87697.0,0.011417]
[1769528133116,0.10272,87716.0,87697.0,0.011417]
[1769528133305,0.11578476,87715.0,87699.0,0.011416]
[1769528133505,0.11578476,87714.0,87696.0,0.11683462]
[1769528133712,0.11578476,87713.0,87696.0,0.11683462]
[1769528133915,0.10851865,87712.0,87696.0,0.11683462]
[1769528134115,0.11578476,87711.0,87696.0,0.11683462]
[1769528135607,0.22558231,87740.0,87696.0,0.11683462]
[1769528135608,0.10851865,87733.0,87702.0,0.11669315]
[1769528135912,0.10272,87738.0,87719.0,0.10565998]
[1769528136116,0.10272,87738.0,87727.0,0.10565998]
[1769528136510,0.10272,87738.0,87727.0,0.11707298]
[1769528136705,0.10272,87738.0,87727.0,0.10565998]
[1769528137322,0.10272,87738.0,87727.0,0.11707298]
[1769528138414,0.10272,87738.0,87727.0,0.10565998]
[1769528139123,0.10272,87738.0,87724.0,0.011413]
[1769528139715,0.10272,87738.0,87724.0,0.11382682]
[1769528140226,0.10272,87738.0,87724.0,0.10241382]
[1769528140721,0.10851865,87737.0,87721.0,0.10272]
[1769528141025,0.10851865,87737.0,87719.0,0.10272]
[1769528141723,0.10851865,87737.0,87720.0,0.011414]
[1769528142110,0.10851865,87737.0,87725.0,0.011413]
[1769528142315,0.10851865,87737.0,87720.0,0.10266968]
[1769528142316,0.10272,87742.0,87724.0,0.10266968]
[1769528142818,0.10272,87742.0,87725.0,0.011413]
[1769528143422,0.10272,87742.0,87724.0,0.10266968]
[1769528145820,0.10851865,87741.0,87719.0,0.10272]
[1769528146526,0.10851865,87741.0,87720.0,0.11468996]
[1769528147717,0.10785796,87740.0,87720.0,0.11468996]
[1769528147916,0.10851865,87739.0,87720.0,0.10327596]
[1769528148419,0.10851865,87739.0,87719.0,0.10272]
[1769528149618,0.10851865,87739.0,87721.0,0.011413]
[1769528149928,0.10272,87742.0,87721.0,0.11334798]
[1769528150225,0.10784515,87741.0,87724.0,0.10193498]
[1769528150427,0.10784515,87740.0,87724.0,0.10193498]
[1769528150622,0.10272,87743.0,87724.0,0.10193498]
[1769528150815,0.10786177,87742.0,87724.0,0.10193498]
[1769528151017,0.10786177,87741.0,87724.0,0.10193498]
[1769528151212,0.10786177,87740.0,87724.0,0.10193498]
[1769528151418,0.21123865,87743.0,87724.0,0.10193498]
[1769528151614,0.10851865,87741.0,87719.0,0.10272]
[1769528151814,0.10851865,87739.0,87719.0,0.10272]
[1769528153123,0.10786072,87738.0,87719.0,0.10272]
[1769528153331,0.10851865,87736.0,87719.0,0.10272]
[1769528156230,0.21719522,87735.0,87719.0,0.10272]
[1769528156433,0.10929947,87735.0,87719.0,0.10272]
[1769528157128,0.10929947,87735.0,87719.0,0.20263809]
[1769528157933,0.10929947,87735.0,87719.0,0.21405209]
[1769528158128,0.10929947,87742.0,87721.0,0.011414]
[1769528158332,0.10767008,87741.0,87723.0,0.11133109]
[1769528158531,0.10272,87743.0,87723.0,0.11133109]
[1769528158532,0.21696955,87740.0,87723.0,0.11133109]
[1769528158843,0.21696955,87739.0,87723.0,0.11133109]
[1769528159023,0.10929947,87739.0,87723.0,0.11133109]
[1769528159333,0.10929947,87739.0,87723.0,0.09991809]
[1769528159536,0.10929947,87739.0,87724.0,0.011413]
[1769528159725,0.10929947,87739.0,87723.0,0.09991809]
[1769528159931,0.10929947,87737.0,87719.0,0.10272]
[1769528160231,0.10929947,87735.0,87719.0,0.10272]
[1769528161331,0.10929947,87735.0,87719.0,0.20698155]
[1769528162131,0.10785139,87734.0,87719.0,0.20698155]
[1769528162333,0.10929947,87741.0,87720.0,0.10426155]
[1769528162526,0.10785598,87740.0,87720.0,0.10426155]
[1769528162727,0.10785598,87739.0,87720.0,0.10426155]
[1769528162928,0.10929947,87741.0,87720.0,0.10426155]
[1769528162929,0.10785598,87738.0,87720.0,0.10426155]
[1769528163126,0.10272,87742.0,87720.0,0.10426155]
[1769528163127,0.10785598,87737.0,87720.0,0.10426155]
[1769528163329,0.10929947,87735.0,87719.0,0.10272]
[1769528163529,0.10929947,87733.0,87712.0,0.10272]
[1769528163732,0.10929947,87731.0,87712.0,0.10272]
[1769528163927,0.10929947,87731.0,87713.0,0.011415]
[1769528163928,0.10785598,87730.0,87713.0,0.011415]
[1769528164134,0.10785598,87730.0,87712.0,0.20881546]
[1769528165638,0.10929947,87731.0,87712.0,0.20881546]
[1769528165834,0.10802387,87730.0,87712.0,0.22023046]
[1769528166134,0.10929947,87728.0,87712.0,0.10272]
[1769528170544,0.10929947,87728.0,87718.0,0.11846547]
[1769528174527,0.10929947,87741.0,87719.0,0.12066704]
[1769528174730,0.10929947,87741.0,87730.0,0.11846547]
[1769528174932,0.10929947,87741.0,87720.0,0.011414]
[1769528175230,0.11846547,87740.0,87714.0,0.10930205]
[1769528175429,0.11846547,87740.0,87713.0,0.10272]
[1769528175430,0.10929947,87739.0,87713.0,0.10272]
[1769528176941,0.10929947,87722.0,87697.0,0.10272]
[1769528177143,0.10929947,87721.0,87697.0,0.114137]
[1769528177441,0.10929947,87721.0,87700.0,0.11846547]
[1769528177937,0.1085503,87720.0,87701.0,0.10747747]
[1769528178138,0.1085503,87719.0,87705.0,0.10747747]
[1769528178337,0.21201947,87722.0,87710.0,0.11846547]
[1769528178539,0.10852726,87721.0,87710.0,0.11846547]
[1769528178842,0.10852726,87720.0,87710.0,0.11846547]
[1769528179042,0.10852726,87719.0,87710.0,0.11846547]
[1769528179243,0.21201947,87722.0,87710.0,0.11846547]
[1769528179450,0.10272,87722.0,87711.0,0.10640595]
[1769528180044,0.10272,87732.0,87716.0,0.10640595]
[1769528180244,0.10929947,87735.0,87718.0,0.11846547]
[1769528180446,0.10929947,87735.0,87721.0,0.10640595]
[1769528180447,0.10272,87735.0,87721.0,0.10640595]
[1769528181141,0.10272,87754.0,87729.0,0.1061436]
[1769528181343,0.10272,87754.0,87737.0,0.22460907]
[1769528181942,0.10272,87754.0,87738.0,0.1061436]
[1769528183547,0.10272,87754.0,87738.0,0.1175546]
[1769528183743,0.10885305,87766.0,87744.0,0.107534]
[1769528183947,0.10272,87766.0,87752.0,0.107534]
[1769528184147,0.10272,87779.0,87756.0,0.107534]
[1769528184443,0.10272,87779.0,87760.0,0.10678702]
[1769528184643,0.11597977,87786.0,87765.0,0.10678702]
[1769528184644,0.10272,87784.0,87765.0,0.10678702]
[1769528185144,0.11597977,87783.0,87758.0,0.10678702]
[1769528185845,0.11597977,87783.0,87757.0,0.10272]
[1769528186050,0.11597977,87783.0,87752.0,0.10678702]
[1769528186242,0.11597977,87783.0,87753.0,0.40332]
[1769528186441,0.11597977,87783.0,87753.0,0.51010702]
[1769528186650,0.11597977,87783.0,87754.0,0.10272]
[1769528187245,0.11597977,87783.0,87749.0,0.10268]
[1769528187551,0.40324,87782.0,87760.0,0.10582299]
[1769528187847,0.40324,87782.0,87762.0,0.10582299]
[1769528188053,0.40324,87782.0,87761.0,0.011408]
[1769528188054,0.11597977,87783.0,87765.0,0.11723099]
[1769528188237,0.10268,87784.0,87768.0,0.011407]
[1769528188443,0.10268,87784.0,87768.0,0.11722999]
[1769528188638,0.11597977,87789.0,87770.0,0.011407]
[1769528188839,0.11597977,87789.0,87770.0,0.10769583]
[1769528189457,0.11597977,87789.0,87770.0,0.11910283]
[1769528190336,0.11597977,87789.0,87770.0,0.10769583]
[1769528191753,0.10268,87792.0,87775.0,0.011406]
[1769528191951,0.0022781,87793.0,87775.0,0.12130527]
[1769528192355,0.11597977,87792.0,87770.0,0.14798785]
[1769528192647,0.11597977,87792.0,87770.0,0.10268]
[1769528192950,0.11597977,87792.0,87760.0,0.10989927]
[1769528193138,0.11597977,87792.0,87761.0,0.10268]
[1769528193545,0.10531752,87791.0,87756.0,0.10268]
[1769528193744,0.25330537,87790.0,87756.0,0.10268]
[1769528193951,0.10531752,87789.0,87747.0,0.10268]
[1769528194147,0.11597977,87787.0,87747.0,0.10268]
[1769528194351,0.11597977,87785.0,87748.0,0.11851713]
[1769528194545,0.11597977,87783.0,87749.0,0.11851713]
[1769528194753,0.11597977,87781.0,87749.0,0.11851713]
[1769528194948,0.40316,87784.0,87749.0,0.11851713]
[1769528194949,0.11597977,87779.0,87749.0,0.11851713]
[1769528196161,0.11597977,87777.0,87747.0,0.10268]
[1769528196358,0.11597977,87775.0,87747.0,0.10268]
[1769528196665,0.11597977,87773.0,87738.0,0.10268]
[1769528196857,0.11597977,87771.0,87738.0,0.10268]
[1769528197053,0.11597977,87769.0,87729.0,0.10268]
[1769528197255,0.11597977,87767.0,87729.0,0.10268]
[1769528197556,0.11597977,87765.0,87729.0,0.10268]
[1769528197757,0.11597977,87763.0,87729.0,0.10268]
[1769528197953,0.30048,87768.0,87731.0,0.011412]
[1769528197954,0.11597977,87761.0,87731.0,0.011412]
[1769528198164,0.11597977,87759.0,87730.0,0.11851713]
[1769528198351,0.10530981,87758.0,87730.0,0.11851713]
[1769528198551,0.11597977,87757.0,87730.0,0.11851713]
[1769528200264,0.11597977,87757.0,87729.0,0.10268]
[1769528201154,0.11597977,87755.0,87730.0,0.11851713]
[1769528202857,0.11597977,87755.0,87734.0,0.011412]
[1769528203060,0.11597977,87755.0,87734.0,0.11851713]
[1769528203356,0.11597977,87755.0,87735.0,0.011412]
[1769528203553,0.11597977,87755.0,87726.0,0.01139906]
[1769528203755,0.11597977,87753.0,87726.0,0.01139906]
[1769528203961,0.11597977,87751.0,87726.0,0.12991619]
[1769528204353,0.11597977,87751.0,87726.0,0.01139906]
[1769528204760,0.11597977,87749.0,87726.0,0.01139906]
[1769528205058,0.30052,87752.0,87726.0,0.01139906]
[1769528205059,0.11597977,87747.0,87726.0,0.01139906]
[1769528205259,0.11597977,87745.0,87726.0,0.01139906]
[1769528205460,0.11597977,87743.0,87726.0,0.01139906]
[1769528205661,0.10724701,87742.0,87726.0,0.01139906]
[1769528205856,0.11597977,87743.0,87726.0,0.01139906]
[1769528207561,0.11597977,87743.0,87714.0,0.11851713]
[1769528207757,0.08963709,87743.0,87713.0,0.00798062]
[1769528207958,0.1072413,87742.0,87713.0,0.00798062]
[1769528208165,0.1072413,87741.0,87713.0,0.00798062]
[1769528208365,0.1072413,87740.0,87713.0,0.00798062]
[1769528208563,0.1072413,87739.0,87713.0,0.00798062]
[1769528208762,0.1072413,87738.0,87713.0,0.00798062]
[1769528209066,0.14798785,87750.0,87713.0,0.00798062]
[1769528209067,0.5104413,87737.0,87713.0,0.00798062]
[1769528209266,0.41084,87754.0,87713.0,0.00798062]
[1769528209267,0.5104413,87736.0,87713.0,0.00798062]
[1769528209468,0.1072413,87735.0,87713.0,0.00798062]
[1769528209656,0.11597977,87734.0,87713.0,0.00798062]
[1769528211562,0.11597977,87751.0,87733.0,0.011412]
[1769528211766,0.11597977,87779.0,87738.0,0.11851713]
[1769528211971,0.11597977,87774.0,87746.0,0.01141]
[1769528212165,0.11597977,87774.0,87744.0,0.11851713]
[1769528212166,0.11597977,87772.0,87748.0,0.01141]
[1769528212466,0.11597977,87770.0,87744.0,0.11851713]
[1769528212667,0.11597977,87768.0,87744.0,0.11851713]
[1769528212862,0.11597977,87766.0,87744.0,0.11851713]
[1769528213068,0.11597977,87764.0,87744.0,0.11851713]
[1769528213266,0.10726209,87763.0,87744.0,0.11851713]
[1769528213570,0.10268,87762.0,87744.0,0.11851713]
[1769528215570,0.11877394,87761.0,87737.0,0.13015266]
[1769528215762,0.11877394,87761.0,87737.0,0.11874166]
[1769528216469,0.11877394,87761.0,87726.0,0.011413]
[1769528216768,0.10268,87762.0,87726.0,0.11874166]
[1769528216769,0.11877394,87759.0,87726.0,0.11874166]
[1769528216973,0.11877394,87757.0,87726.0,0.11874166]
[1769528217377,0.11877394,87757.0,87728.0,0.11874166]
[1769528217875,0.11877394,87755.0,87732.0,0.11874166]
[1769528218069,0.11877394,87753.0,87732.0,0.11874166]
[1769528221186,0.11877394,87761.0,87736.0,0.11874166]
[1769528221486,0.11877394,87759.0,87736.0,0.11874166]
[1769528221786,0.00569784,87753.0,87736.0,0.11874166]
[1769528221974,0.11877394,87751.0,87729.0,0.11874166]
[1769528222281,0.00569784,87753.0,87736.0,0.11874166]
[1769528222473,0.10268,87752.0,87744.0,0.11874166]
[1769528222675,0.10495914,87753.0,87744.0,0.11874166]
[1769528223071,0.11877394,87784.0,87755.0,0.11874166]
[1769528223280,0.23658231,87787.0,87759.0,0.13015066]
[1769528223281,0.11877394,87782.0,87759.0,0.13015066]
[1769528223487,0.11877394,87780.0,87759.0,0.13015066]
[1769528223788,0.10757686,87779.0,87759.0,0.11874166]
[1769528223980,0.11877394,87778.0,87759.0,0.11874166]
[1769528224180,0.10757686,87777.0,87759.0,0.11874166]
[1769528224580,0.51077686,87776.0,87759.0,0.11874166]
[1769528224880,0.10757686,87775.0,87759.0,0.11874166]
[1769528225678,0.10268,87774.0,87759.0,0.11874166]
[1769528226785,0.11877394,87784.0,87760.0,0.11874166]
[1769528226987,0.51081564,87783.0,87760.0,0.11874166]
[1769528227281,0.21029564,87782.0,87768.0,0.11874166]
[1769528227483,0.10268,87782.0,87768.0,0.11874166]
[1769528227683,0.11877394,87780.0,87760.0,0.11874166]
[1769528227875,0.10756761,87779.0,87760.0,0.11874166]